[Event "DFMM-LV 2023"]
[Site "Braunfels"]
[Date "2023.06.09"]
[Round "3.15"]
[White "Nobis, Martina"]
[Black "Rosmait, Emily"]
[Result "1/2-1/2"]
[Annotator "NA RC COMBH"]
[ECO "C96"]
[WhiteElo "1834"]
[BlackElo "1862"]
[PlyCount "92"]
[EventDate "2023.06.09"]
[EventType "team-tourn"]
[EventCountry "GER"]
[SourceTitle "playchess.com"]
[Source "ChessBase"]
[SourceQuality "1"]
[TimeControl "40/5400+30:1800+30"]

1. e4 {[%emt 0:00:03]} e5 {[%emt 0:00:04]} 2. Nf3 {[%emt 0:00:04]} Nc6 {[%emt 0:00:04]} 3. Bb5 {[%emt 0:00:03]} a6 {[%emt 0:00:42]} 4. Ba4 {[%emt 0:00:07]} Nf6 {[%emt 0:01:40]} 5. d3 {[%emt 0:01:02]} b5 {[%emt 0:01:45]} 6. Bb3 {[%emt 0:00:02]} Be7 {[%emt 0:04:34]} 7. O-O {[%emt 0:00:38]} O-O {[%emt 0:00:33]} 8. c3 {[%emt 0:00:07]} d6 {[%emt 0:00:24]} 9. h3 {[%emt 0:00:11]} Na5 {[%emt 0:01:06]} 10. Bc2 {[%emt 0:00:16]} c5 {[%emt 0:00:16]} 11. Nbd2 {[%emt 0:00:25]} Qc7 {[%emt 0:09:27]} 12. Re1 {[%emt 0:00:51]} Nc6 {[%emt 0:04:06]} 13. Nf1 {[%emt 0:00:10]} d5 {[%emt 0:05:55]} 14. exd5 {[%emt 0:03:57]} Nxd5 {[%emt 0:00:02]} 15. Ng3 {[%emt 0:01:35]} h6 {[%emt 0:11:49]} 16. Bb3 {[%emt 0:17:54]} Nf6 {[%emt 0:10:17]} 17. Qe2 {[%emt 0:01:08]} Re8 {[%emt 0:03:29]} 18. Ne4 {[%emt 0:02:27]} Bb7 {[%emt 0:04:09]} 19. Nfd2 {[%emt 0:07:24]} Nxe4 {[%emt 0:01:58]} 20. Nxe4 {[%emt 0:00:08]} Bf8 {[%emt 0:00:10]} 21. Qg4 {[%emt 0:03:50]} Kh8 {[%emt 0:09:39]} 22. Qf5 {[%emt 0:08:25]} Bc8 {[%emt 0:10:40]} 23. Qxf7 {[%emt 0:03:17]} Qxf7 {[%emt 0:01:41]} 24. Bxf7 {[%emt 0:00:05]} Rd8 {[%emt 0:00:15]} 25. Be3 {[%emt 0:01:24]} Rxd3 {[%emt 0:06:21]} 26. Bxc5 {[%emt 0:00:49]} Bxc5 {[%emt 0:00:58]} 27. Nxc5 {[%emt 0:00:02]} Rd2 {[%emt 0:00:38]} 28. b3 {[%emt 0:04:29]} Bf5 {[%emt 0:02:16]} 29. Red1 {[%emt 0:05:27]} Rc2 {[%emt 0:02:01]} 30. Bd5 {[%emt 0:12:41]} Rc8 {[%emt 0:01:43]} 31. c4 {[%emt 0:12:25]} bxc4 {[%emt 0:02:18]} 32. Bxc4 {[%emt 0:00:35]} a5 {[%emt 0:00:45]} 33. g4 {[%emt 0:04:12]} Bh7 {[%emt 0:01:21]} 34. Ne6 {[%emt 0:00:52]} Nd4 {[%emt 0:02:48]} 35. Nxd4 {[%emt 0:00:34]} exd4 {[%emt 0:00:00]} 36. Rxd4 {[%emt 0:00:36]} Bg8 {[%emt 0:01:11]} 37. Bxg8 {[%emt 0:01:37]} Kxg8 {[%emt 0:00:12]} 38. Ra4 {[%emt 0:00:54]} R8c5 {[%emt 0:00:48]} 39. Re1 {[%emt 0:00:43]} Rd2 {[%emt 0:00:50]} 40. Re8+ {[%emt 0:05:47]} Kh7 {[%emt 0:00:49]} 41. h4 {[%emt 0:06:00]} h5 {[%emt 0:04:54]} 42. g5 {[%emt 0:03:01]} Rf5 {[%emt 0:00:54]} 43. f4 {[%emt 0:12:40]} Rfd5 {[%emt 0:05:33] [#]} 44. Re1 $11 {[%emt 0:03:43]} (44. Rae4 $1 $16) 44... R5d3 {[%emt 0:05:06]} 45. f5 {[%emt 0:01:59]} Rg3+ {[%emt 0:01:42]} 46. Kh1 {[%emt 0:00:29]} Rh3+ {[%emt 0:02:42]} 1/2-1/2

[Event "DFMM-LV 2023"]
[Site "Braunfels"]
[Date "2023.06.09"]
[Round "3.16"]
[White "Freter, Anke"]
[Black "Gottschall, Ina"]
[Result "1-0"]
[Annotator "NA RC COMBH"]
[ECO "B07"]
[WhiteElo "1855"]
[BlackElo "1673"]
[PlyCount "48"]
[EventDate "2023.06.09"]
[EventType "team-tourn"]
[EventCountry "GER"]
[SourceTitle "playchess.com"]
[Source "ChessBase"]
[SourceQuality "1"]
[TimeControl "40/5400+30:1800+30"]

1. e4 {[%emt 0:00:02]} g6 {[%emt 0:00:03]} 2. Nc3 {[%emt 0:01:10]} Bg7 {[%emt 0:00:14]} 3. f4 {[%emt 0:00:31]} d6 {[%emt 0:00:39]} 4. Nf3 {[%emt 0:00:22]} c6 {[%emt 0:03:46]} 5. Bc4 {[%emt 0:02:29]} e6 {[%emt 0:01:42]} 6. O-O {[%emt 0:01:26]} Ne7 {[%emt 0:09:18]} 7. d3 {[%emt 0:07:32]} O-O {[%emt 0:04:25]} 8. Bb3 {[%emt 0:02:02]} d5 {[%emt 0:02:02]} 9. e5 {[%emt 0:01:43]} Nf5 {[%emt 0:07:33]} 10. Qe1 {[%emt 0:03:40]} d4 {[%emt 0:05:28]} 11. Ne4 {[%emt 0:02:18]} Qe7 {[%emt 0:07:26]} 12. g4 {[%emt 0:04:38]} Nh6 {[%emt 0:00:50]} 13. g5 {[%emt 0:05:25]} Nf5 {[%emt 0:00:30]} 14. Nf6+ Bxf6 {[%emt 0:00:30]} 15. gxf6 {[%emt 0:01:00]} Qc5 {[%emt 0:07:05]} 16. Ng5 {[%emt 0:02:40]} h6 {[%emt 0:00:30]} 17. Ne4 {[%emt 0:00:30]} Qb6 {[%emt 0:06:30]} 18. Rf3 {[%emt 0:04:50]} h5 {[%emt 0:14:41]} 19. Rh3 {[%emt 0:01:17]} Kh7 {[%emt 0:00:30]} 20. Qe2 {[%emt 0:00:30]} Rg8 {[%emt 0:00:30]} 21. Ng5+ {[%emt 0:00:30]} Kh6 {[%emt 0:00:30]} 22. Nxf7+ {[%emt 0:00:30]} Kh7 {[%emt 0:00:30]} 23. Kh1 {[%emt 0:00:30]} Nh6 {[%emt 0:00:30]} 24. Rxh5 {[%emt 0:00:30]} gxh5 {[%emt 0:06:47]} 1-0

[Event "DFMM-LV 2023"]
[Site "Braunfels"]
[Date "2023.06.09"]
[Round "3.17"]
[White "Li, Zhuoling"]
[Black "Rieseler, Caroline"]
[Result "1/2-1/2"]
[Annotator "TA"]
[ECO "B31"]
[WhiteElo "2216"]
[BlackElo "2126"]
[PlyCount "42"]
[EventDate "2023.06.09"]
[EventType "team-tourn"]
[EventCountry "GER"]
[SourceTitle "playchess.com"]
[Source "ChessBase"]
[SourceQuality "1"]
[TimeControl "40/5400+30:1800+30"]

{[%evp 12,42,26,31,33,31,27,12,14,11,15,16,16,17,20,14,36,27,25,-15,0,0,0,-51,-10,-43,0,-70,-59,-79,-85,-141,-116]} 1. e4 {[%emt 0:00:04]} c5 {[%emt 0:00:24]} 2. Nf3 {[%emt 0:00:06]} Nc6 {[%emt 0:00:06]} 3. Bb5 {[%emt 0:00:06]} g6 {[%emt 0:00:12]} 4. O-O {[%emt 0:00:28]} Bg7 {[%emt 0:00:05]} 5. Bxc6 {[%emt 0:00:20]} dxc6 {[%emt 0:00:04]} 6. h3 {[%emt 0:00:06]} e5 {[%emt 0:01:23]} 7. d3 {[%emt 0:01:18]} Qc7 {[%emt 0:01:20] B31: Sicilian: 2...Nc6 3 Bb5 g6.} 8. Be3 {[%emt 0:01:30]} b6 {[%emt 0:00:04]} 9. a4 {[%emt 0:01:16][%cal Oa4a5]} a5 {[%emt 0:00:05] The position is equal.} 10. Nbd2 {[%emt 0:00:39]} Ne7 {[%emt 0:00:58]} 11. Nc4 {[%emt 0:04:17][%cal Ob2b4]} Be6 {[%emt 0:03:02]} 12. b3 {[%emt 0:02:00]} O-O {[%emt 0:07:00] [#]} 13. Rb1 $146 {[%emt 0:02:11]} ({Predecessor:} 13. Qe2 f6 14. c3 h6 15. d4 cxd4 16. cxd4 f5 17. Nxb6 Qxb6 18. d5 Qb4 19. dxe6 Qxe4 {½-½ Garau,B (2300)-Martinez Pinares,K (2287) CUB-FRA email 2018 [9]}) 13... f5 {[%emt 0:11:03]} 14. Ng5 {[%emt 0:15:32] A dynamic duo of knights.} Bd7 {[%emt 0:01:11]} 15. Qe2 {[%emt 0:09:59]} (15. b4 $5) 15... h6 {[%emt 0:02:28] [#] ...f4 is the strong threat.} 16. Nf3 {[%emt 0:00:08][%cal Ob3b4]} f4 {[%emt 0:00:31]} 17. Bd2 {[%emt 0:00:19]} ({White should play} 17. Bc1 $11) 17... g5 {[%emt 0:00:38]} (17... b5 $5 {[%cal Rb5c4]} 18. Na3 g5 $11) 18. Nh2 {[%emt 0:01:29]} Kh7 {[%emt 0:16:05]} (18... b5 $5 {[%cal Rb5c4]} 19. Nb2 Nc8 $11) 19. c3 {[%emt 0:00:47]} ({Better is} 19. Ra1 $11) 19... b5 {[%emt 0:03:21]} 20. Nb2 {[%emt 0:00:44]} Qd6 {[%emt 0:05:15]} 21. Rfd1 {[%emt 0:07:50]} ({White should try} 21. Nf3) 21... Be6 {[%emt 0:05:05] Weighted Error Value: White=0.26 (precise) /Black=0.10 (very precise)} 1/2-1/2

[Event "DFMM-LV 2023"]
[Site "Braunfels"]
[Date "2023.06.09"]
[Round "3.18"]
[White "Geske, Bruna"]
[Black "Meier, Annemarie"]
[Result "0-1"]
[Annotator "TA"]
[ECO "B22"]
[WhiteElo "2054"]
[BlackElo "2258"]
[PlyCount "118"]
[EventDate "2023.06.09"]
[EventType "team-tourn"]
[EventCountry "GER"]
[SourceTitle "playchess.com"]
[Source "ChessBase"]
[SourceQuality "1"]
[TimeControl "40/5400+30:1800+30"]

{[%evp 9,118,-9,-25,-35,6,-34,-7,-5,-2,-23,0,-7,-2,-49,-48,-44,-28,-77,-61,-106,-62,-78,-71,-80,-69,-77,-77,-59,-53,-56,-21,-82,-78,-106,-73,-73,-75,-88,-81,-84,-37,-93,-27,-106,-43,-94,0,-101,-104,-104,-102,-126,-93,-104,-101,-105,-90,-129,-129,-129,-130,-148,-157,-152,-131,-167,-161,-237,-226,-197,-242,-275,-240,-380,-383,-350,-379,-386,-195,-181,-185,-424,-424,-433,-419,-410,-416,-477,-477,-477,-477,-603,-566,-534,-520,-836,-270,-1173,-1124,-1060,-1048,-1616,-1896,-3540,-5397,-29987,-29988,-29986,-29987,-29991,-29992]} 1. e4 {[%emt 0:00:04]} c5 {[%emt 0:00:16]} 2. Nf3 {[%emt 0:00:05]} Nc6 {[%emt 0:00:09]} 3. c3 {[%emt 0:00:19]} Nf6 {[%emt 0:00:25]} 4. Bd3 {[%emt 0:02:33]} e5 {[%emt 0:07:46]} 5. Bc2 {[%emt 0:01:20]} d5 {[%emt 0:00:35]} 6. d3 {[%emt 0:05:22] B22: Sicilian: 2 c3.} Be7 {[%emt 0:03:41]} 7. h3 {[%emt 0:00:49] [#]} a6 $146 {[%emt 0:01:40]} ({Predecessor:} 7... O-O 8. O-O d4 9. Nbd2 Ne8 10. Nc4 Qc7 11. Qe2 b5 12. Ncd2 Nd6 13. a4 b4 {0-1 Khan,T (2019)-Colpe,M (2367) Titled Tuesday intern op 28th Jun Late blitz 2022 (5)}) 8. O-O {[%emt 0:03:09] The position is equal.} O-O {[%emt 0:00:30]} 9. a4 {[%emt 0:00:30]} b6 {[%emt 0:08:40]} 10. Nbd2 {[%emt 0:03:56]} d4 {[%emt 0:03:04]} 11. Nh2 {[%emt 0:02:49]} (11. Nc4 $11) 11... Be6 $15 {[%emt 0:03:38]} 12. Re1 {[%emt 0:03:53]} Ra7 {[%emt 0:02:24]} 13. Ndf1 {[%emt 1:12:11]} (13. Nhf3 $11) 13... Rd7 {[%emt 0:01:58]} 14. c4 {[%emt 0:00:00]} Bd6 {[%emt 0:00:30]} 15. Bg5 {[%emt 0:00:00]} h6 {[%emt 0:00:30]} 16. Bd2 {[%emt 0:00:00]} Kh7 {[%emt 0:00:30]} 17. Ng3 {[%emt 0:00:00]} g6 {[%emt 0:00:30]} 18. Qc1 {[%emt 0:00:00]} Ng8 {[%emt 0:00:30]} 19. Bd1 {[%emt 0:00:00]} h5 {[%emt 0:00:30]} 20. Nf3 {[%emt 0:00:00]} (20. a5 $11) 20... f6 $17 {[%emt 0:00:30]} 21. Be2 {[%emt 0:00:00]} Re8 {[%emt 0:13:57]} (21... Rdf7 {seems wilder.} 22. Nh4 Nge7 23. Rf1 Rh8) 22. Nh4 {[%emt 0:00:00][%cal Oa4a5]} Bf7 {[%emt 0:02:05]} (22... Nge7 {with more complications.} 23. Ra3 Rh8 24. Rf1 Kg7) 23. Nf3 {[%emt 0:00:00]} Bf8 {[%emt 0:00:12]} 24. Bd1 {[%emt 0:00:00]} Bh6 {[%emt 0:00:25]} (24... a5 $17) 25. Rf1 {[%emt 0:00:00]} (25. a5 $15) 25... Qc7 {[%emt 0:01:43]} (25... a5 $17) 26. Nh4 {[%emt 0:00:00]} (26. a5 $11 {keeps the balance.}) 26... Nce7 {[%emt 0:04:46]} ({Black should play} 26... a5 $17) 27. Qc2 {[%emt 0:00:00]} (27. a5 $15) 27... Nc6 {[%emt 0:01:58]} 28. Qc1 $1 {[%emt 0:00:00]} Nb4 {[%emt 0:00:47] White is on the road to losing.} 29. Be2 {[%emt 0:00:00]} Bf4 {[%emt 0:00:32]} 30. Qd1 {[%emt 0:00:00][%cal Oa4a5]} Nc6 {[%emt 0:03:17]} 31. Qc1 {[%emt 0:00:00]} Nh6 {[%emt 0:00:53]} 32. Bd1 {[%emt 0:00:00][%cal Oa4a5]} Rde7 {[%emt 0:05:38]} 33. Rb1 {[%emt 0:00:00]} Nb4 {[%emt 0:00:33]} 34. Be2 {[%emt 0:00:00]} Rg8 {[%emt 0:02:19]} 35. Qe1 {[%emt 0:00:00]} a5 {[%emt 0:08:56] Black is much more active. The white rooks are badly placed.} 36. Qd1 {[%emt 0:02:16]} Qd7 {[%emt 0:04:07]} 37. b3 {[%emt 0:02:25]} Be6 {[%emt 0:06:30][%cal Oe6h3]} 38. Nf3 {[%emt 0:02:49] [#]} (38. Kh2 {was called for.}) 38... Bxh3 $1 $19 {[%emt 0:01:25][%mdl 576] Demolition} 39. gxh3 {[%emt 0:02:51]} (39. Qc1 Bxd2) 39... Qxh3 {[%emt 0:00:07]} 40. Nh2 {[%emt 0:00:52]} f5 {[%emt 0:07:31]} ({Weaker is} 40... Bxg3 41. fxg3 Qxg3+ 42. Kh1 $14) (40... Nxd3 41. Bxd3 Bxg3 42. fxg3 $17) 41. Re1 {[%emt 0:06:50]} (41. Bf3 $142 Nxd3 42. Bg2 Nxf2 43. Bxh3 Nxd1 44. Rbxd1 Bxg3 45. exf5 gxf5 46. Bxf5+ Nxf5 47. Rxf5 Bf4+ 48. Kf2) 41... Bxg3 {[%emt 0:04:27]} 42. fxg3 {[%emt 0:00:07]} Qxg3+ {[%emt 0:00:35]} 43. Kh1 {[%emt 0:00:12] Threatens to win with Rg1.} Nxd3 $40 {[%emt 0:00:37][%mdl 128] White is in trouble.} (43... Ng4 $142 44. Bxg4 Nxd3) 44. Bxd3 {[%emt 0:00:25]} Qxd3 {[%emt 0:00:09]} 45. Bxh6 $2 {[%emt 0:00:42]} (45. Bg5 Qxd1 46. Rbxd1) 45... Qxd1 {[%emt 0:00:12]} ({But not} 45... fxe4 46. Qxd3 exd3 47. Bg5 $18) 46. Rbxd1 {[%emt 0:00:07] Strongly threatening Bg5.} Kxh6 {[%emt 0:00:06]} 47. Nf3 {[%emt 0:00:38]} f4 {[%emt 0:00:33]} 48. Kg2 {[%emt 0:05:18]} g5 {[%emt 0:00:50][%cal Bg6g5,Bg5g4][%mdl 32]} 49. Rh1 {[%emt 0:01:04]} g4 {[%emt 0:02:06]} 50. Nh4 {[%emt 0:00:08] Black must now prevent Nf5+.} Kg5 {[%emt 0:00:26]} 51. Rdg1 {[%emt 0:02:46]} Rf8 {[%emt 0:01:45] ...f3+ would be deadly.} 52. Kf2 {[%emt 0:01:37]} (52. Nf3+ $142 gxf3+ 53. Kxf3+ Kh6 54. Rh2) 52... Rh7 $2 {[%emt 0:00:55]} (52... g3+ 53. Kg2 $11) (52... f3 53. Rh2 Rf4) 53. Rg2 $2 {[%emt 0:01:36]} (53. Nf3+ Kf6 54. Nd2) 53... f3 {[%emt 0:05:54]} 54. Rgg1 {[%emt 0:04:21]} Rf4 {[%emt 0:01:42] And now ...Rhf7 would win.} 55. Rg3 {[%emt 0:06:04]} Rhf7 {[%emt 0:01:09]} 56. Nf5 {[%emt 0:02:34]} Rxe4 {[%emt 0:00:24]} 57. Nd6 {[%emt 0:00:22]} Re2+ {[%emt 0:00:08] Black mates.} 58. Kf1 {[%emt 0:00:04]} Rf8 {[%emt 0:02:05]} 59. Rhg1 {[%emt 0:00:18]} d3 {[%emt 0:00:19] Weighted Error Value: White=0.76/Black=0.27 (precise)} 0-1

[Event "DFMM-LV 2023"]
[Site "Braunfels"]
[Date "2023.06.09"]
[Round "3.19"]
[White "Kostak, Tetyana"]
[Black "Barpiyeva, Gulsana"]
[Result "0-1"]
[Annotator "TA"]
[ECO "A04"]
[WhiteElo "2117"]
[BlackElo "2023"]
[PlyCount "68"]
[EventDate "2023.06.09"]
[EventType "team-tourn"]
[EventCountry "GER"]
[SourceTitle "playchess.com"]
[Source "ChessBase"]
[SourceQuality "1"]
[TimeControl "40/5400+30:1800+30"]

{[%evp 18,68,-9,-22,45,51,48,36,57,25,24,-16,-30,-53,0,0,46,-14,26,-69,-47,-54,-30,-41,-39,-97,-43,-27,-4,-14,10,0,4,-44,-45,-45,-25,-108,-107,-322,-240,-462,-452,-387,-118,-114,-110,-101,-35,-77,0,-170,761]} 1. Nf3 {[%emt 0:00:12]} c5 {[%emt 0:00:17]} 2. e4 {[%emt 0:01:20]} e6 {[%emt 0:00:19]} 3. d3 {[%emt 0:00:45]} Nc6 {[%emt 0:01:17]} 4. g3 {[%emt 0:00:24]} d6 {[%emt 0:00:53]} 5. Bg2 {[%emt 0:00:16]} g6 {[%emt 0:00:38]} 6. O-O {[%emt 0:00:44]} Bg7 {[%emt 0:00:21]} 7. c3 {[%emt 0:01:58]} Nge7 {[%emt 0:00:36]} 8. Re1 {[%emt 0:01:26]} O-O {[%emt 0:00:40] 8...e5 is the modern continuation.} 9. Nbd2 {[%emt 0:00:47]} Rb8 {[%emt 0:01:40]} 10. a4 {[%emt 0:01:16]} b5 {[%emt 0:03:55] A04: Unusual lines after 1 Nf3 and King's Indian Attack.} (10... e5 $11) 11. axb5 $14 {[%emt 0:01:55]} Rxb5 {[%emt 0:00:18]} 12. Nc4 {[%emt 0:02:31] [#]} d5 $146 {[%emt 0:12:05] White is slightly better.} ({Predecessor:} 12... e5 13. Qa4 Rb7 14. Nfd2 Qc7 15. Nf1 Bd7 16. Qa6 Bc8 17. Qa3 Bd7 18. Nfe3 Re8 {½-½ Ralis,P (2203)-Pospech,R (2066) CZE-chT2A 1516 2015 (10.4)}) 13. Na3 {[%emt 0:03:58]} Rb6 {[%emt 0:03:56]} 14. e5 {[%emt 0:00:50]} Qc7 {[%emt 0:02:12][%cal Rc6e5]} 15. Qe2 {[%emt 0:03:38]} Ba6 {[%emt 0:02:21]} (15... a5 $15) 16. Nc2 $11 {[%emt 0:08:56]} d4 {[%emt 0:12:27]} 17. c4 {[%emt 0:03:25]} (17. cxd4 $14 cxd4 18. Ncxd4) 17... Rd8 {[%emt 0:05:39][%cal Oa6c4]} 18. Qe4 {[%emt 0:08:14]} (18. Bg5 h6 19. Bd2 (19. Bf6 Rxb2 20. Qd1 Bb7 $17) 19... Bb7 $15) ({Better is} 18. b3 $11) 18... Bb7 $15 {[%emt 0:05:56][%cal Oc6e5]} 19. Qe2 {[%emt 0:05:15]} Qb8 {[%emt 0:05:38]} 20. Na3 {[%emt 0:00:40]} a6 {[%emt 0:00:44]} 21. Rb1 {[%emt 0:03:11]} (21. Nb1 $15) 21... Qa8 {[%emt 0:03:54] Black is more active.} (21... h6 $17 22. h4 Na5) 22. Bg5 {[%emt 0:07:00]} h6 {[%emt 0:05:58]} 23. Bf6 {[%emt 0:06:51]} Rb8 {[%emt 0:02:17]} 24. Nd2 {[%emt 0:05:54]} Qa7 {[%emt 0:04:43]} 25. Bxg7 {[%emt 0:12:14]} (25. b3 $11) 25... Kxg7 {[%emt 0:00:04]} 26. Ne4 {[%emt 0:02:37]} (26. Qf3 Nxe5 27. Qe2 Nd7 $17) 26... Rb3 {[%emt 0:04:28]} 27. Nd6 {[%emt 0:04:31]} (27. Nd2 $1 $11 {was the only way to keep the balance.} Rb6 28. Ne4 (28. Qf3 Nxe5 29. Qe2 Nd7 $17)) 27... Ba8 $17 {[%emt 0:00:00]} 28. g4 $2 {[%emt 0:01:02] Dodges Nf5} (28. Qc2 $17 R3b6 29. f4) 28... Nb4 {[%emt 0:03:35]} 29. Nab5 $2 {[%emt 0:04:48]} (29. Bxa8 Qxa8 30. Red1) 29... axb5 $19 {[%emt 0:01:53]} 30. Ra1 {[%emt 0:00:07] [#]} Qd7 {[%emt 0:03:30]} 31. Rxa8 $17 {[%emt 0:03:09]} Rxa8 {[%emt 0:00:30]} 32. Bxa8 {[%emt 0:00:30]} Nxd3 {[%emt 0:00:30]} (32... Rxd3 33. cxb5 Qa7 34. Be4 $16) ({Black should try} 32... bxc4 $1 $17 33. Qf3 Ng8) 33. Qf3 $15 {[%emt 0:00:30] [#]} Ng8 {[%emt 0:00:30] Prevents Qf6+. A dynamic duo of knights.} (33... Nxe1 $2 34. Qxf7+ Kh8 35. Ne8 $18) (33... Nxe5 $1 $17 34. Qxb3 Qxd6 35. cxb5 g5) 34. Rd1 $2 {[%emt 0:00:30] [#]} (34. Ra1 $11 {and White has nothing to worry.}) 34... Nb4 $4 {[%emt 0:00:30][%mdl 40960] A cool game by Barpiyeva.   Weighted Error Value: White=0.58/Black=0.51. Loss on time!?} 0-1